bitfinex-derivatives/quotes_ETHF0:USTF0_20250102
["timestamp","ask_amount","ask_price","bid_price","bid_amount"]
[1735833958977,0.2897,3455.5,3455.3,0.2897]
[1735833959174,0.2897,3455.5,3455.4,0.2897]
[1735833959381,0.4607,3455.7,3455.0,0.72434]
[1735833959581,0.28969,3455.6,3455.5,0.28969]
[1735833959782,0.4607,3455.7,3455.1,0.72432]
[1735833959982,0.28969,3455.6,3455.5,0.28969]
[1735833960482,0.4607,3455.7,3454.9,4.503]
[1735833960669,2.92711603,3455.5,3454.9,4.503]
[1735833961078,3.93206,3455.4,3454.5,0.72445]
[1735833961383,0.4403,3455.3,3454.4,11.05301603]
[1735833961589,0.4403,3455.3,3455.2,0.28972]
[1735833961881,3.49751,3455.4,3455.3,0.28971]
[1735833961882,3.2078,3455.4,3455.3,0.28971]
[1735833962477,0.28972,3455.3,3455.2,0.28971]
[1735833962677,3.2078,3455.4,3454.8,3.2078]
[1735833962877,5.26912811,3455.4,3454.8,3.2078]
[1735833963183,3.2078,3455.4,3454.8,3.2078]
[1735833963980,0.28972,3455.2,3455.1,0.28972]
[1735833964290,0.28972,3455.2,3454.7,0.72439]
[1735833964484,0.28972,3455.2,3455.1,0.28973]
[1735833964782,3.2078,3455.4,3455.1,0.28972]
[1735833964783,0.28971,3455.3,3455.1,0.28972]
[1735833964972,0.28974,3455.0,3454.8,0.28974]
[1735833965176,0.28973,3455.1,3455.0,0.28973]
[1735833965574,0.4611,3455.2,3454.4,14.96035825]
[1735833965787,0.4611,3455.2,3454.9,0.28974]
[1735833965788,3.2078,3455.0,3454.9,0.28974]
[1735833966483,3.2078,3455.4,3454.4,12.51868636]
[1735833966682,0.28971,3455.3,3455.2,0.28972]
[1735833966879,3.2078,3455.4,3455.3,0.28971]
[1735833967286,3.2078,3455.4,3455.1,0.28972]
[1735833967480,3.2078,3455.4,3455.0,0.28973]
[1735833967677,3.2078,3455.4,3454.5,7.51919825]
[1735833967874,3.2078,3455.4,3454.7,0.7244]
[1735833968079,3.2078,3455.4,3454.6,0.4426]
[1735833968380,3.2078,3455.4,3454.8,0.72439]
[1735833968581,0.9218,3455.7,3454.9,0.72436]
[1735833968783,0.2897,3455.4,3454.8,0.72439]
[1735833968985,0.2897,3455.5,3454.9,0.72436]
[1735833969181,0.9218,3455.7,3455.4,0.2897]
[1735833969382,1.21148,3455.7,3455.6,0.28968]
[1735833969585,3.2078,3455.8,3455.1,0.28973]
[1735833969816,0.28969,3455.6,3455.2,0.7243]
[1735833969983,0.2897,3455.5,3455.4,0.2897]
[1735833970384,3.2078,3455.8,3454.8,7.7108]
[1735833970682,0.28968,3455.6,3455.1,0.72431]
[1735833970878,0.28968,3455.6,3455.5,0.28969]
[1735833971084,0.2897,3455.5,3455.4,0.28969]
[1735833971583,3.2078,3455.8,3455.0,0.72434]
[1735833971584,0.28968,3455.7,3455.6,0.28968]
[1735833971791,0.28968,3455.7,3455.5,0.28968]
[1735833972087,0.28968,3455.7,3455.6,0.28968]
[1735833972782,3.2078,3455.8,3455.7,0.28968]
[1735833973278,4.46726446,3456.2,3455.6,2.06132811]
[1735833973279,7.67506446,3456.2,3455.6,2.06132811]
[1735833973486,7.67506446,3456.2,3456.1,0.28964]
[1735833974189,4.46726446,3456.6,3456.0,7.7108]
[1735833974486,4.46726446,3456.6,3456.5,0.28961]
[1735833975088,4.46726446,3456.6,3456.1,1.18081]
[1735833975089,0.28962,3456.4,3456.1,0.4567]
[1735833975393,2.06132811,3456.5,3456.0,7.7108]
[1735833975688,3.49741,3456.5,3456.4,4.55079258]
[1735833975888,3.92121,3456.5,3456.4,4.55079258]
[1735833976492,5.98253811,3456.5,3456.4,4.55079258]
[1735833976886,0.28963,3456.3,3456.0,4.79265]
[1735833977084,0.28962,3456.4,3456.2,0.28963]
[1735833977282,3.6316,3456.5,3456.2,0.28963]
[1735833977487,3.6316,3456.5,3456.0,4.503]
[1735833977686,3.2078,3456.5,3456.4,0.28962]
[1735833977884,4.46726446,3456.8,3456.6,0.2896]
[1735833978186,0.28958,3456.8,3456.6,0.2896]
[1735833978387,4.46726446,3456.9,3456.1,1.18791]
[1735833978388,4.46726446,3456.9,3456.8,0.28958]
[1735833978889,4.46726446,3456.9,3456.3,0.72406]
[1735833979092,0.2896,3456.7,3456.5,0.2896]
[1735833979385,0.28959,3456.8,3456.6,0.2896]
[1735833979583,4.0913,3457.0,3456.9,0.28958]
[1735833979899,3.2078,3457.0,3456.9,0.28958]
[1735833980082,3.2078,3457.0,3456.5,4.503]
[1735833980801,3.2078,3457.0,3456.9,0.28958]
[1735833981085,3.2078,3457.0,3456.5,4.503]
[1735833981487,3.49737,3457.0,3456.8,0.28958]
[1735833981792,3.2078,3457.0,3456.9,0.28958]
[1735833982188,3.80695268,3457.3,3457.2,0.28955]
[1735833982498,4.09650268,3457.3,3456.7,0.72399]
[1735833983086,3.80695268,3457.3,3456.7,0.72399]
[1735833983292,0.4275,3457.3,3457.2,0.28955]
[1735833983796,0.71705,3457.3,3457.2,0.28955]
[1735833983997,0.4275,3457.3,3456.8,0.4407]
[1735833984200,0.28956,3457.1,3457.0,0.28956]
[1735833984498,0.4275,3457.3,3456.9,0.28957]
[1735833984499,0.28957,3457.0,3456.9,0.28957]
[1735833984809,3.2078,3457.0,3456.7,0.28959]
[1735833985000,3.2078,3457.0,3456.5,4.55079258]
[1735833985291,0.28958,3456.9,3456.8,0.28958]
[1735833985492,0.28956,3457.1,3456.5,4.55079258]
[1735833985688,0.4275,3457.3,3457.2,0.28955]
[1735833986095,3.6356,3457.4,3457.3,0.28954]
[1735833986594,3.2078,3457.4,3457.3,0.28954]
[1735833987491,3.37945268,3457.5,3457.4,0.28953]
[1735833987693,3.37945268,3457.5,3457.4,2.35085811]
[1735833988288,3.37945268,3457.5,3457.4,6.85385811]
[1735833989089,0.2895,3457.8,3457.4,2.06132811]
[1735833989395,0.2895,3457.8,3457.5,0.28952]
[1735833989396,0.28952,3457.6,3457.5,0.28952]
[1735833989590,0.28951,3457.7,3457.6,0.28951]
[1735833989796,0.28952,3457.6,3457.5,0.28952]
[1735833989995,0.28951,3457.7,3457.6,0.28951]
[1735833990593,4.90966446,3458.2,3457.4,2.06132811]
[1735833990793,4.90966446,3458.2,3458.1,0.28947]
[1735833991589,4.46726446,3458.2,3458.1,0.28947]
[1735833992393,4.46726446,3458.2,3458.1,4.79247]
[1735833993490,3.07526446,3458.2,3458.1,9.79247]
[1735833993699,5.58408058,3458.5,3458.4,4.79245]
[1735833993904,10.05134505,3459.3,3459.2,0.28938]
[1735833994703,10.05134505,3459.3,3459.2,4.79238]
[1735833995104,10.05134505,3459.3,3459.2,9.79238]
[1735833995805,10.05134505,3459.3,3459.2,4.79238]
[1735833996405,10.05134505,3459.3,3459.2,4.503]
[1735833996705,10.05134505,3459.3,3459.2,4.79238]
[1735833997805,10.34071505,3459.3,3459.2,4.503]
[1735833998005,10.05134505,3459.3,3459.0,3.2078]
[1735833998201,0.8661,3459.2,3459.1,0.28939]
[1735833998898,0.8661,3459.2,3459.0,3.2078]
[1735833999099,0.8661,3459.2,3459.1,0.28939]
[1735833999704,0.8661,3459.2,3458.8,0.28941]
[1735833999904,3.2078,3459.0,3458.3,4.503]
[1735834000098,3.2078,3459.0,3458.7,0.28942]
[1735834000296,3.2078,3459.0,3458.0,3.2078]
[1735834000501,3.2078,3458.6,3457.8,2.45898649]
[1735834000805,1.16695,3458.5,3457.8,2.45898649]
[1735834001102,0.8775,3458.5,3458.4,0.28945]
[1735834002399,0.439,3458.5,3458.4,0.28945]
[1735834002599,3.2078,3459.0,3458.9,0.28941]
[1735834002896,3.2078,3459.4,3458.7,0.72355]
[1735834003101,3.2078,3459.4,3459.3,0.28937]
[1735834003896,3.6305,3459.4,3459.3,0.28937]
[1735834004401,0.4227,3459.4,3459.3,0.28937]
[1735834006411,3.6305,3459.4,3458.7,0.72355]
[1735834006702,3.2078,3459.0,3458.1,0.72369]
[1735834006909,2.88738649,3458.9,3457.9,3.2078]
[1735834007098,3.2078,3458.5,3457.5,3.2078]
[1735834007313,3.49729,3458.0,3457.9,0.28949]
[1735834007509,3.2078,3458.0,3457.9,0.28949]
[1735834007706,3.2078,3458.0,3457.2,0.72388]
[1735834007906,0.8902,3457.9,3457.2,0.72388]
[1735834008206,1.1797,3457.9,3457.8,0.2895]
[1735834008406,0.8902,3457.9,3457.0,2.45898649]
[1735834008607,0.28951,3457.7,3457.6,0.28951]
[1735834008814,0.2895,3457.8,3457.4,0.28953]
[1735834009006,3.49733,3457.5,3456.9,0.72393]
[1735834009312,0.28954,3457.3,3457.2,0.28954]
[1735834009609,3.49733,3457.5,3457.4,0.28953]
[1735834009912,3.2078,3457.5,3457.4,0.28953]
[1735834011010,3.49733,3457.5,3457.4,0.28953]
[1735834011207,3.49733,3457.5,3457.3,0.28953]
[1735834011406,3.2078,3457.5,3457.4,0.28953]
[1735834012711,3.6482,3457.5,3457.4,0.28953]
[1735834013115,0.4404,3457.5,3457.4,0.28953]
[1735834015211,3.649,3457.9,3457.4,2.45898649]
[1735834015410,3.649,3457.9,3457.8,0.2895]
[1735834015411,3.2078,3457.9,3457.8,0.2895]
[1735834015610,0.4532,3458.4,3457.5,0.72382]
[1735834015916,0.74265,3458.4,3458.3,0.28946]
[1735834016415,0.4532,3458.4,3457.5,0.72382]
[1735834016612,0.28946,3458.3,3458.1,0.28947]
[1735834016811,0.4532,3458.4,3457.5,0.72382]
[1735834017012,0.4532,3458.4,3458.3,0.28946]
[1735834017217,0.74265,3458.4,3458.2,0.28946]
[1735834017410,0.4532,3458.4,3457.7,0.72378]
[1735834018006,0.74265,3458.4,3458.2,0.28946]
[1735834018615,0.4532,3458.4,3457.4,4.503]
[1735834018813,0.28947,3458.2,3458.0,0.28948]
[1735834019012,0.4532,3458.4,3457.5,0.28953]
[1735834019013,0.2895,3457.8,3457.5,0.28953]
[1735834019320,0.8917,3457.7,3457.6,0.28952]
[1735834019521,4.0995,3457.7,3457.6,0.28952]
[1735834020317,4.0995,3457.7,3457.0,3.18290649]
[1735834020518,4.0995,3457.7,3456.9,0.28958]
[1735834020519,0.28953,3457.5,3456.9,0.28958]
[1735834020817,3.2078,3457.3,3457.2,0.28955]
[1735834021721,0.8917,3457.7,3457.6,0.28952]
[1735834021912,0.4572,3457.7,3457.6,0.28952]
[1735834023022,0.9174,3458.1,3457.6,0.28952]
[1735834023023,0.9174,3458.1,3458.0,0.28948]
[1735834023320,3.2078,3458.2,3457.8,2.45898649]
[1735834023620,3.2078,3458.2,3458.1,0.28947]
[1735834023825,0.4205,3458.3,3458.2,0.28947]
[1735834028826,0.2895,3457.9,3457.8,0.28949]
[1735834029126,3.2078,3457.9,3457.3,4.55079258]
[1735834029427,0.28947,3458.2,3457.5,0.7238]
[1735834029728,0.28947,3458.2,3458.1,0.28947]
[1735834030029,0.4205,3458.3,3458.2,0.28947]
[1735834031319,0.4205,3458.3,3457.1,7.7108]
[1735834031519,0.4205,3458.3,3457.3,4.55079258]
[1735834031520,3.2078,3457.6,3457.3,4.55079258]
[1735834031724,3.2078,3457.6,3457.3,4.84032258]
[1735834031725,0.28953,3457.4,3457.3,4.84032258]
[1735834032028,1.353,3457.5,3457.4,0.28953]
[1735834032323,1.353,3457.5,3457.3,4.55079258]
[1735834032524,0.28953,3457.4,3457.3,4.55079258]
[1735834032729,0.28953,3457.4,3457.3,4.84033258]
[1735834033028,0.28953,3457.4,3457.3,0.28954]
[1735834033328,1.353,3457.5,3456.8,4.55079258]
[1735834033527,4.5608,3457.5,3456.8,4.55079258]
[1735834033725,0.28954,3457.3,3456.8,4.55079258]
[1735834033925,0.28956,3457.2,3457.1,0.28956]
[1735834034124,0.72384,3457.4,3456.8,4.55079258]
[1735834034326,3.49737,3457.1,3457.0,0.28956]
[1735834034520,3.2078,3457.1,3456.3,4.55079258]
[1735834034721,0.28962,3456.4,3456.3,4.55079258]
[1735834035429,1.3294,3456.5,3456.4,0.28962]
[1735834035619,3.2078,3456.6,3456.3,4.55079258]
[1735834035827,3.2078,3456.6,3456.5,0.28961]
[1735834036831,0.8776,3457.4,3456.5,4.503]
[1735834037027,6.56062191,3457.5,3457.4,0.28953]
[1735834037228,6.85015191,3457.5,3457.4,0.28953]
[1735834037425,3.2078,3457.5,3457.4,0.28953]
[1735834038927,3.2078,3457.5,3457.1,0.7239]
[1735834038928,0.4319,3458.0,3457.5,0.28953]
[1735834039125,0.4319,3458.0,3457.9,0.28949]
[1735834039331,0.4319,3458.0,3457.3,2.45898649]
[1735834039531,0.4319,3458.0,3457.5,0.28952]
[1735834039532,0.28949,3457.9,3457.5,0.28952]
[1735834039725,0.28955,3457.2,3456.9,0.28958]
[1735834039928,3.2078,3457.0,3456.9,4.55079258]
[1735834040128,3.2078,3457.0,3456.9,1.44299258]
[1735834040129,3.49737,3457.0,3456.9,1.44299258]
[1735834040529,3.94057,3457.0,3456.9,1.44299258]
[1735834040736,0.28958,3456.8,3456.7,3.89888633]
[1735834040934,0.28963,3456.3,3456.1,0.28964]
[1735834041231,3.2078,3456.2,3456.1,0.28964]
[1735834041442,0.28964,3456.1,3456.0,0.28965]
[1735834041629,3.2078,3456.2,3456.0,0.28965]
[1735834041936,3.2078,3456.2,3456.1,0.28964]
[1735834042530,0.72395,3456.9,3455.3,3.60295649]
[1735834042531,3.4974,3456.6,3456.4,0.28961]
[1735834042728,3.4974,3456.6,3455.7,3.18316649]
[1735834042729,3.2078,3456.6,3455.7,3.18316649]
[1735834043026,3.4974,3456.6,3456.4,0.28961]
[1735834043230,3.2078,3456.6,3455.7,3.18316649]
[1735834043530,0.28961,3456.5,3456.3,0.28962]
[1735834043729,3.2078,3456.6,3455.7,3.18316649]
[1735834044034,0.73321,3456.5,3456.3,0.28962]
[1735834044630,0.4436,3456.5,3455.7,3.18316649]
[1735834044839,0.4436,3456.5,3455.9,3.2078]
[1735834045034,0.4542,3456.8,3456.1,2.45898649]
[1735834045233,3.2078,3457.0,3456.2,1.61409]
[1735834045434,3.2078,3457.0,3456.9,0.28958]
[1735834046034,2.24828026,3457.3,3456.5,3.18299649]
[1735834046337,2.24828026,3457.3,3457.2,0.28955]
[1735834046531,0.74373,3457.4,3456.7,0.72398]
[1735834046737,0.74373,3457.4,3457.2,0.28955]
[1735834046936,0.28955,3457.3,3457.1,0.28956]
[1735834047135,0.4542,3457.4,3457.3,0.28954]
[1735834047434,0.4436,3457.5,3457.4,0.28953]
[1735834047627,3.2078,3457.9,3457.0,0.72392]
[1735834047832,3.6521,3458.0,3457.7,0.28951]
[1735834048132,3.2078,3458.0,3457.9,0.28949]
[1735834049043,2.24828026,3458.2,3458.1,0.28947]
[1735834049235,2.24828026,3458.2,3457.7,0.72378]
[1735834049236,3.2078,3458.6,3458.5,0.28944]
[1735834049430,3.2078,3458.6,3457.8,0.4177]
[1735834049634,3.49724,3458.6,3457.9,0.72374]
[1735834049833,3.2078,3458.6,3458.5,0.28944]
[1735834050037,3.2078,3458.6,3457.9,0.72374]
[1735834050332,3.49724,3458.6,3458.4,0.28945]
[1735834050934,3.2078,3458.6,3457.8,0.4177]
[1735834051133,0.8737,3458.7,3457.8,0.4177]
[1735834051134,3.49727,3458.2,3457.9,0.28949]
[1735834051334,3.2078,3458.2,3457.8,0.4177]
[1735834051641,3.2078,3458.6,3458.2,0.28946]
[1735834051837,0.28946,3458.3,3458.1,0.28947]
[1735834052037,3.2078,3458.2,3458.1,0.28947]
[1735834052633,3.2078,3458.2,3457.3,2.45898649]
[1735834052842,3.2078,3458.2,3457.2,3.2078]
[1735834052843,3.2078,3458.2,3457.2,3.6623]
[1735834053235,0.72365,3458.3,3457.2,3.6623]
[1735834053236,3.2078,3457.7,3457.2,3.6623]
[1735834053437,0.28952,3457.6,3457.5,0.28952]
[1735834053639,0.28953,3457.5,3457.4,0.28953]
[1735834053848,3.2078,3457.7,3457.2,0.4545]
[1735834054049,0.426,3457.6,3456.9,9.05140244]
[1735834054343,0.28956,3457.1,3457.0,0.28957]
[1735834054542,0.28955,3457.2,3457.1,0.28955]
[1735834054744,0.71552,3457.6,3457.5,0.28953]
[1735834055135,0.426,3457.6,3457.5,0.28953]
[1735834055852,0.71552,3457.6,3457.5,0.28953]
[1735834056147,0.426,3457.6,3457.5,0.28953]
[1735834056346,0.426,3457.6,3457.1,0.4545]
[1735834056746,0.28953,3457.5,3457.1,0.4545]
[1735834056947,0.28953,3457.5,3457.4,0.28953]
[1735834057145,0.426,3457.6,3457.4,0.28953]
[1735834057344,0.71552,3457.6,3457.1,0.4545]
[1735834057541,0.426,3457.6,3457.5,0.28953]
[1735834057737,3.2078,3457.7,3457.6,0.28952]
[1735834057941,5.87778026,3458.2,3457.5,0.72382]
[1735834058144,2.66998026,3458.2,3458.1,0.28947]
[1735834058948,3.6295,3458.2,3457.5,3.2078]
[1735834059142,3.6295,3458.2,3458.1,0.28947]
[1735834059539,0.4217,3458.2,3458.1,0.28947]
[1735834060256,0.71117,3458.2,3458.1,0.28947]
[1735834060459,0.4217,3458.2,3457.3,2.45898649]
[1735834060654,3.2078,3458.0,3457.2,0.4354]
[1735834060858,3.2078,3458.0,3457.6,0.28952]
[1735834060859,0.28951,3457.7,3457.6,0.28952]
[1735834061057,3.2078,3458.0,3457.2,0.4354]
[1735834061361,3.2078,3458.0,3457.7,0.2895]
[1735834061551,0.2895,3457.8,3457.7,0.2895]
[1735834061953,3.2078,3458.0,3457.7,0.2895]
[1735834062157,0.2895,3457.8,3457.7,0.2895]
[1735834062655,0.28949,3457.9,3457.8,0.2895]
[1735834062860,3.2078,3458.0,3457.9,0.28949]
[1735834063754,0.4217,3458.2,3458.1,0.28947]
[1735834064463,0.28948,3458.1,3458.0,0.28948]
[1735834064660,0.71117,3458.2,3458.0,0.28948]
[1735834064857,0.4217,3458.2,3458.0,0.28948]
[1735834065061,0.28949,3457.9,3457.8,0.2895]
[1735834065362,3.2078,3458.0,3457.9,0.28949]
[1735834066054,0.28949,3458.0,3457.9,0.28949]
[1735834066860,3.49728,3458.1,3458.0,0.28948]
[1735834067062,3.2078,3458.1,3458.0,0.28948]
[1735834067258,3.49727,3458.1,3458.0,0.28948]
[1735834068761,0.71117,3458.2,3458.1,0.28947]
[1735834069465,0.4217,3458.2,3458.1,0.28947]
[1735834069664,3.2078,3458.5,3457.5,3.2078]
[1735834069665,3.2078,3458.5,3458.4,0.28945]
[1735834069861,3.49725,3458.5,3458.4,0.28945]
[1735834070060,3.2078,3458.5,3458.4,0.28945]
[1735834070263,0.28945,3458.4,3458.3,0.28945]
[1735834070762,3.2078,3458.5,3458.2,0.28946]
[1735834070763,0.28946,3458.3,3458.2,0.28946]
[1735834071056,0.28947,3458.2,3458.1,0.28947]
[1735834071262,3.2078,3458.5,3457.9,0.28949]
[1735834071263,0.28949,3458.0,3457.9,0.28949]
[1735834072164,3.2078,3458.1,3457.4,0.8455]
[1735834072363,0.74679,3458.0,3457.9,0.28949]
[1735834073064,0.28949,3457.9,3457.8,0.2895]
[1735834073369,0.4573,3458.0,3457.4,0.8455]
[1735834073370,0.74679,3458.0,3457.9,0.28949]
[1735834073672,0.4573,3458.0,3457.4,0.8455]
[1735834073961,0.4573,3458.0,3457.8,0.28949]
[1735834073962,0.28949,3457.9,3457.8,0.28949]
[1735834074364,0.435,3457.9,3457.4,0.8455]
[1735834074569,3.49732,3457.6,3457.5,0.28952]
[1735834074768,3.2078,3457.6,3457.5,0.28952]
[1735834075672,0.435,3457.9,3457.7,0.2895]
[1735834075859,0.2895,3457.8,3457.7,0.2895]
[1735834076264,3.6651,3458.0,3457.9,0.28949]
[1735834076466,3.2078,3458.0,3457.9,0.28949]
[1735834079069,0.28951,3457.8,3457.7,0.2895]
[1735834079572,3.2078,3458.0,3457.9,0.28949]
[1735834079764,3.2078,3458.0,3457.5,0.72381]
[1735834079765,3.6583,3458.4,3458.3,0.28946]
[1735834080172,2.68318026,3458.9,3458.3,3.2078]
[1735834080373,2.68318026,3458.9,3458.8,0.28942]
[1735834080778,2.24828026,3458.9,3458.8,0.28942]
[1735834081078,2.24828026,3458.9,3458.8,3.49722]
[1735834081269,2.24828026,3459.2,3458.8,3.49722]
[1735834081466,2.24828026,3459.2,3459.1,0.28939]
[1735834082576,0.28937,3459.4,3459.3,0.28937]
[1735834083272,3.2078,3459.6,3458.9,2.45898649]
[1735834083479,3.2078,3459.6,3459.5,0.28936]
[1735834085676,0.4249,3460.0,3459.3,0.437]
[1735834085876,0.4249,3460.0,3459.5,0.28935]
[1735834086075,0.28936,3459.6,3459.5,0.28935]
[1735834086476,3.2078,3459.6,3459.3,0.437]
[1735834086681,3.2078,3459.6,3459.5,0.28936]
[1735834087168,3.6327,3460.0,3459.4,0.4517]
[1735834087372,3.2078,3460.0,3459.9,0.28932]
[1735834087982,2.69228026,3460.5,3460.4,0.28928]
[1735834088178,2.24828026,3460.5,3460.4,0.28928]
[1735834089179,3.2078,3460.7,3459.7,2.45898649]
[1735834089380,3.2078,3460.7,3460.3,0.28928]
[1735834089575,0.28928,3460.5,3460.3,0.28928]
[1735834089777,0.28928,3460.5,3460.4,0.28928]
[1735834090180,3.2078,3460.7,3459.8,0.8998]
[1735834090378,3.2078,3460.7,3460.6,0.28927]
[1735834090774,3.2078,3460.7,3459.8,5.4028]
[1735834090983,0.28929,3460.4,3460.2,0.28929]
[1735834091185,3.2078,3460.7,3459.8,4.9511]
[1735834091380,0.28927,3460.6,3460.0,0.28931]
[1735834091577,3.2078,3460.7,3459.8,4.9511]
[1735834091779,3.2078,3460.3,3459.9,0.28932]
[1735834091979,0.28933,3459.9,3459.7,0.28934]
[1735834092277,3.2078,3460.3,3459.7,2.45898649]
[1735834092582,3.2078,3460.7,3460.6,0.28927]
[1735834092781,0.8835,3460.8,3460.7,0.28926]
[1735834093589,0.4395,3460.8,3460.7,0.28926]
[1735834095586,3.2078,3461.1,3461.0,0.28923]
[1735834098387,3.49702,3461.1,3461.0,0.28923]
[1735834099285,3.2078,3461.1,3461.0,0.28923]
[1735834099688,3.49702,3461.1,3461.0,0.28923]
[1735834100088,3.2078,3461.1,3461.0,0.28923]
[1735834101101,3.2078,3461.1,3460.3,1.17432]
[1735834101283,3.2078,3461.1,3460.2,2.91718649]
[1735834101284,3.2078,3461.1,3460.6,0.28926]
[1735834101489,0.28925,3460.8,3460.7,0.28925]
[1735834101689,3.6348,3461.1,3460.2,1.18145]
[1735834101884,0.28926,3460.8,3460.7,0.28926]
[1735834102088,3.6348,3461.1,3460.4,0.72321]
[1735834102288,3.6348,3461.1,3460.5,0.72319]
[1735834102488,0.28924,3461.0,3460.9,0.28924]
[1735834102986,3.2078,3461.1,3461.0,0.28923]
[1735834103886,8.2078,3461.1,3460.2,0.4582]
[1735834104192,2.90928649,3461.2,3460.3,0.28929]
[1735834104193,3.2078,3460.4,3460.3,0.28929]
[1735834104793,3.2078,3461.1,3461.0,0.28923]
[1735834105389,3.2078,3461.1,3460.2,6.80891]
[1735834105390,3.2078,3461.1,3460.2,0.8594]
[1735834105595,0.28926,3460.7,3460.6,0.28926]
[1735834105796,0.28926,3460.7,3460.3,0.72323]
[1735834106096,3.2078,3461.1,3460.2,0.8594]
[1735834106293,0.28925,3460.8,3460.7,0.28925]
[1735834107696,3.2078,3461.1,3460.3,0.72323]
[1735834107884,0.70766,3460.7,3460.6,0.28926]
[1735834108188,0.4184,3460.7,3460.2,0.8594]
[1735834108386,0.4184,3460.7,3460.4,0.28928]
[1735834108387,0.28928,3460.5,3460.4,0.28928]
[1735834108601,0.28927,3460.6,3460.5,0.28927]
[1735834108897,0.70766,3460.7,3460.6,0.28927]
[1735834109095,3.6262,3460.7,3460.6,0.28927]
[1735834109303,3.2078,3460.7,3460.6,0.28927]
[1735834109497,3.2078,3461.1,3460.3,0.72322]
[1735834109697,3.2078,3461.1,3460.5,0.72318]
[1735834109905,0.28924,3461.0,3460.9,0.28923]
[1735834110103,0.28925,3460.9,3460.8,0.28924]
[1735834110298,0.28926,3460.8,3460.7,0.28926]
[1735834110495,3.2078,3461.1,3460.2,0.8594]
[1735834110496,5.66678649,3461.1,3460.2,0.8594]
[1735834110700,3.49707,3460.6,3460.5,0.28927]
[1735834110996,0.28928,3460.5,3460.4,0.28928]
[1735834111193,0.74018,3460.5,3460.4,0.28928]
[1735834111693,0.28929,3460.4,3460.3,0.28929]
[1735834111999,0.28929,3460.4,3459.8,0.72334]
[1735834112000,0.28933,3459.9,3459.8,0.28933]
[1735834112199,3.9311,3460.0,3459.4,0.4528]
[1735834112404,3.9311,3460.0,3458.9,3.18251649]
[1735834112405,0.28937,3459.4,3459.3,0.28937]
[1735834112696,3.2078,3459.6,3459.5,0.28936]
[1735834112895,3.2078,3460.6,3459.7,0.72335]
[1735834113100,3.2078,3460.6,3459.8,0.8846]
[1735834113296,0.28928,3460.5,3460.4,0.28927]
[1735834113498,3.2078,3460.6,3459.8,0.8846]
[1735834113698,0.28928,3460.5,3460.4,0.28928]
[1735834113902,0.28927,3460.5,3460.4,0.28928]
[1735834114094,3.2078,3460.6,3459.8,0.8846]
[1735834114291,3.49707,3460.6,3460.5,0.28927]
[1735834114495,3.2078,3460.6,3460.0,0.72328]
[1735834114700,3.2078,3460.6,3459.9,0.72332]
[1735834115003,2.24828026,3460.8,3460.3,2.45898649]
[1735834115199,3.2078,3461.1,3460.4,0.4253]
[1735834115399,3.2078,3461.1,3461.0,0.28923]
[1735834115800,3.49702,3461.1,3461.0,0.28923]
[1735834117500,3.2078,3461.1,3461.0,0.28923]
[1735834118204,3.49702,3461.1,3461.0,0.28923]
[1735834118393,3.2078,3461.1,3461.0,0.28923]
[1735834119199,0.4321,3461.2,3461.1,0.28922]
[1735834119704,0.72132,3461.2,3461.1,0.28922]
[1735834120105,0.4321,3461.2,3461.1,0.28922]
[1735834120697,3.2078,3461.5,3460.9,2.05491989]
[1735834120899,3.2078,3461.5,3461.4,0.2892]
[1735834121100,3.49699,3461.5,3461.4,0.2892]
[1735834121301,3.2078,3461.5,3461.0,1.17807]
[1735834121503,0.2892,3461.4,3461.3,0.28921]
[1735834121704,3.2078,3461.5,3461.0,0.455]
[1735834121901,0.28922,3461.2,3461.0,0.74423]
[1735834122099,0.28922,3461.2,3460.6,6.55791989]
[1735834122100,5.98579989,3461.1,3460.2,4.503]
[1735834122301,3.2078,3460.7,3460.6,0.28927]
[1735834122707,3.93026,3460.7,3460.6,0.28927]
[1735834123000,3.641,3460.7,3460.2,4.959]
[1735834123198,3.641,3460.7,3460.0,2.05491989]
[1735834123399,3.641,3460.7,3459.9,0.4372]
[1735834123603,3.2078,3460.3,3459.7,0.28933]
[1735834123804,0.28936,3459.5,3459.4,7.05284653]
[1735834124002,3.2078,3459.5,3459.4,7.05284653]
[1735834124197,0.28935,3459.7,3459.5,0.28935]
[1735834124401,0.28935,3459.7,3459.4,6.76347653]
[1735834124402,0.4509,3459.8,3459.7,0.28934]
[1735834124602,3.2078,3460.3,3460.1,0.28931]
[1735834124799,3.2078,3460.4,3459.8,0.4186]
[1735834125113,2.53758026,3460.2,3460.1,0.28931]
[1735834125301,2.53758026,3460.2,3459.8,0.4186]
[1735834125302,2.24828026,3460.2,3459.8,0.4186]
[1735834125702,2.53758026,3460.2,3460.1,0.28931]
[1735834126299,2.24828026,3460.2,3460.1,0.28931]
[1735834126504,2.24828026,3460.5,3459.8,1.14192]
[1735834126705,2.53756026,3460.5,3460.3,0.28929]
[1735834126900,2.53756026,3460.5,3460.4,0.28928]
[1735834127107,2.24828026,3460.5,3460.4,0.28928]
[1735834127609,2.24828026,3460.6,3460.5,0.28927]
[1735834128708,3.95575,3460.8,3460.6,0.28926]
[1735834129111,3.95575,3460.8,3460.2,0.418]
[1735834129304,3.6665,3460.8,3460.2,0.418]
[1735834129503,0.71836,3460.7,3460.6,0.28927]
[1735834129911,0.4291,3460.7,3460.2,0.418]
[1735834130207,0.28928,3460.5,3460.3,0.28929]
[1735834130414,0.4291,3460.7,3460.0,6.76347653]
[1735834130705,3.2078,3460.4,3460.0,6.76347653]